bitfinex/quotes_SOLUSD_20251216
["timestamp","ask_amount","ask_price","bid_price","bid_amount"]
[1765897525611,8.16450092,128.03,128.0,0.92]
[1765897525829,8.16450092,128.02,128.0,0.2]
[1765897526023,15.97534803,128.03,128.0,0.2]
[1765897526226,15.97534803,128.03,128.0,0.92]
[1765897526395,0.1,128.07,128.02,0.72]
[1765897526595,8.54,128.06,128.03,0.72]
[1765897526923,8.54,128.09,128.05,0.72]
[1765897527105,16.70450092,128.09,128.05,0.72]
[1765897527306,8.16450092,128.07,128.03,0.72]
[1765897527633,8.16450092,128.05,128.01,0.72]
[1765897527950,8.54,128.06,128.02,0.72]
[1765897528157,8.54,128.06,128.03,0.72]
[1765897528359,16.70450092,128.06,128.03,0.72]
[1765897528531,16.70450092,128.06,128.02,0.72]
[1765897528716,24.51355582,128.06,128.02,7.81123213]
[1765897528917,16.3490549,128.06,128.02,8.53123213]
[1765897529151,8.16450092,128.05,128.01,7.81164719]
[1765897529377,24.51355582,128.06,128.02,0.72]
[1765897529763,8.16450092,128.05,128.01,8.53177925]
[1765897530122,35.87115391,128.06,128.0,0.92]
[1765897530123,8.16450092,128.04,128.0,0.92]
[1765897530337,8.16450092,128.02,128.0,0.2]
[1765897530650,7.81188969,128.01,128.0,0.2]
[1765897530948,8.54,128.03,128.0,8.73245485]
[1765897531147,16.35078434,128.03,128.0,0.92]
[1765897531945,16.35078434,128.03,128.0,8.73243778]
[1765897532225,8.54,128.03,128.01,0.72]
[1765897532634,8.54,128.03,128.01,8.53171656]
[1765897532942,7.80906845,128.06,128.02,0.72]
[1765897532943,16.34906845,128.06,128.02,0.72]
[1765897533141,8.54,128.06,128.02,0.72]
[1765897533332,24.51236373,128.08,128.03,0.72]
[1765897533730,8.16450092,128.06,128.01,15.97621748]
[1765897534034,8.16450092,128.05,128.02,0.7]
[1765897534238,16.70450092,128.05,128.02,0.7]
[1765897534646,16.70450092,128.05,128.0,8.36450092]
[1765897534647,7.81005935,128.04,128.0,8.68241487]
[1765897534848,15.97456027,128.04,128.0,0.87]
[1765897535061,7.81005935,128.04,128.0,0.87]
[1765897535564,15.97456027,128.04,128.0,8.6824396]
[1765897535820,15.97456027,128.04,128.01,0.67]
[1765897536654,7.81005935,128.04,128.01,8.4817835]
[1765897537270,15.97456027,128.04,128.0,0.87]
[1765897537567,15.97456027,128.04,128.0,8.68211422]
[1765897537767,8.16450092,128.03,128.0,0.2]
[1765897538090,8.54,128.02,128.0,8.01208776]
[1765897538390,16.35005935,128.04,128.01,0.67]
[1765897538762,8.54,128.04,128.01,8.48182678]
[1765897539065,110.30790731,128.08,128.03,0.67]
[1765897539261,8.54,128.07,128.03,0.67]
[1765897539463,0.55,128.09,128.04,0.67]
[1765897539464,7.80748766,128.09,128.04,0.67]
[1765897539695,24.51198858,128.09,128.04,0.67]
[1765897539961,24.51198858,128.09,128.05,0.67]
[1765897539962,8.54,128.09,128.05,0.67]
[1765897540163,8.16450092,128.1,128.01,66.4009995]
[1765897540164,7.80549397,128.12,128.08,0.67]
[1765897540459,0.1,128.14,128.1,0.67]
[1765897540664,16.34340056,128.15,128.11,0.67]
[1765897540866,16.34340056,128.15,128.12,0.67]
[1765897541086,27.66745696,128.19,128.13,8.16450092]
[1765897541284,8.54,128.17,128.14,0.67]
[1765897541588,16.34107337,128.19,128.15,0.67]
[1765897541788,8.54,128.19,128.15,8.83450092]
[1765897541991,16.80450092,128.22,128.17,0.67]
[1765897542284,8.64,128.22,128.18,0.67]
[1765897542485,8.16450092,128.2,128.15,0.67]
[1765897542674,16.70450092,128.19,128.15,0.67]
[1765897542986,7.80152909,128.18,128.15,0.67]
[1765897543576,15.96603001,128.18,128.13,0.67]
[1765897543778,7.80152909,128.18,128.14,0.67]
[1765897544492,16.34110889,128.19,128.15,7.80320416]
[1765897544692,16.34110889,128.19,128.15,0.67]
[1765897544890,16.34110889,128.19,128.16,0.67]
[1765897546295,44.00791108,128.19,128.14,0.67]
[1765897546589,16.34110889,128.19,128.16,0.67]
[1765897548590,102.6,128.22,128.17,0.67]
[1765897548796,102.6,128.22,128.18,8.83450092]
[1765897548963,102.6,128.22,128.18,0.67]
[1765897548964,110.39910824,128.22,128.18,0.67]
[1765897549169,118.56360916,128.22,128.18,0.67]
[1765897549370,110.39910824,128.22,128.18,0.67]
[1765897549681,118.56360916,128.22,128.18,0.67]
[1765897550203,110.39910824,128.22,128.18,0.67]
[1765897550404,102.6,128.22,128.19,0.67]
[1765897550582,102.6,128.22,128.2,8.83450092]
[1765897550904,0.1,128.22,128.21,0.67]
[1765897551670,0.1,128.22,128.19,0.67]
[1765897552292,0.1,128.22,128.21,8.46970361]
[1765897553414,0.1,128.27,128.24,13.0470912]
[1765897553639,0.1,128.27,128.26,8.83450092]
[1765897553774,7.79401515,128.31,128.27,0.67]
[1765897554116,8.16450092,128.3,128.25,0.67]
[1765897554404,15.95933985,128.3,128.26,0.67]
[1765897554616,15.95855343,128.31,128.26,0.67]
[1765897555690,15.95855343,128.31,128.27,0.67]
[1765897555691,7.79405251,128.31,128.27,0.67]
[1765897555888,15.95855343,128.31,128.27,0.67]
[1765897556107,8.16450092,128.3,128.25,7.79701561]
[1765897556301,8.16450092,128.3,128.26,0.67]
[1765897556498,7.79483981,128.29,128.26,0.67]
[1765897557590,15.95865881,128.31,128.27,0.67]
[1765897558287,7.79415789,128.31,128.27,0.67]
[1765897558487,24.49763216,128.32,128.28,7.79544745]
[1765897558721,16.33313124,128.32,128.29,0.67]
[1765897558926,24.49763216,128.32,128.29,0.67]
[1765897559099,16.70450092,128.32,128.29,0.67]
[1765897559422,8.54,128.32,128.29,0.67]
[1765897559638,8.54,128.32,128.27,27.2861303]
[1765897559639,0.1,128.37,128.32,0.67]
[1765897559796,21.0105145,128.37,128.34,0.67]
[1765897560003,13.22037981,128.36,128.31,0.67]
[1765897560194,13.22037981,128.35,128.31,0.67]
[1765897560394,13.22037981,128.36,128.31,13.22037981]
[1765897560620,8.54,128.37,128.33,0.67]
[1765897560802,29.55047163,128.37,128.34,0.67]
[1765897561002,49.02542683,128.37,128.33,0.67]
[1765897561514,0.1,128.4,128.37,0.67]
[1765897561697,7.88828461,128.4,128.37,13.89037981]
[1765897561900,35.89868959,128.4,128.33,13.22037981]
[1765897562106,0.65,128.39,128.33,0.67]
[1765897562403,0.1,128.4,128.38,13.89037981]
[1765897562615,0.1,128.4,128.37,0.67]
[1765897562814,0.1,128.4,128.36,13.89037981]
[1765897563019,0.1,128.4,128.38,8.45927266]
[1765897563342,0.1,128.4,128.39,13.89037981]
[1765897563830,0.1,128.4,128.39,0.67]
[1765897564030,0.1,128.4,128.38,0.7]
[1765897564331,8.54,128.43,128.4,0.7]
[1765897564519,21.20566653,128.45,128.39,8.48823212]
[1765897564729,13.91037981,128.44,128.39,13.92037981]
[1765897565038,0.69,128.39,128.33,0.8]
[1765897565199,13.22037981,128.36,128.31,0.7]
[1765897565400,21.74037981,128.35,128.29,0.7]
[1765897565619,8.52,128.35,128.31,13.22037981]
[1765897565828,8.52,128.35,128.31,0.7]
[1765897566029,8.52,128.35,128.31,8.49358827]
[1765897566229,8.52,128.35,128.31,0.7]
[1765897566613,16.31123671,128.35,128.31,21.71379267]
[1765897566829,29.53161652,128.35,128.29,7.79464548]
[1765897567032,29.53161652,128.35,128.28,7.7952122]
[1765897567033,13.22037981,128.33,128.28,7.7952122]
[1765897567201,13.22037981,128.33,128.26,0.7]
[1765897567202,8.52,128.32,128.26,0.7]
[1765897567404,13.22037981,128.3,128.26,0.7]
[1765897567727,13.22037981,128.27,128.22,8.49893651]
[1765897568029,13.22037981,128.27,128.23,0.7]
[1765897568204,9.21,128.29,128.21,26.26747101]
[1765897568205,13.22037981,128.26,128.21,7.79954269]
[1765897568403,13.22037981,128.27,128.22,13.22037981]
[1765897568608,16.31516684,128.29,128.25,0.7]
[1765897568805,8.52,128.29,128.25,0.7]
[1765897569010,7.79399775,128.31,128.27,13.92037981]
[1765897569217,16.31312774,128.32,128.27,0.7]
[1765897569419,0.69,128.32,128.28,13.22037981]
[1765897569624,0.1,128.37,128.31,13.22037981]
[1765897569820,0.1,128.37,128.35,13.22037981]
[1765897570032,7.88718505,128.42,128.36,13.92037981]
[1765897570234,8.57718505,128.42,128.36,13.22037981]
[1765897570415,21.69756486,128.42,128.36,13.92037981]
[1765897570728,13.22037981,128.4,128.36,0.7]
[1765897570914,13.22037981,128.39,128.34,7.79127051]
[1765897571113,9.21,128.4,128.34,21.71165032]
[1765897571114,22.43037981,128.4,128.34,21.71165032]
[1765897572031,13.22037981,128.38,128.32,21.01303411]
[1765897572219,13.22037981,128.36,128.31,8.49345973]
[1765897572418,13.91037981,128.36,128.31,8.49345973]
[1765897572622,13.22037981,128.33,128.27,0.1]
[1765897572811,7.79301745,128.32,128.28,0.7]
[1765897573625,8.52,128.36,128.32,0.7]
[1765897573910,0.1,128.37,128.33,13.22037981]
[1765897574133,13.0470912,128.38,128.31,13.0470912]
[1765897574134,26.95747101,128.38,128.32,13.92037981]
[1765897574316,21.01078951,128.37,128.32,0.7]
[1765897574633,7.7904097,128.37,128.32,13.92037981]
[1765897574848,7.7904097,128.37,128.33,8.49241019]
[1765897575344,0.69,128.33,128.28,0.1]
[1765897575639,34.78747101,128.34,128.29,0.7]
[1765897575811,13.22037981,128.33,128.29,0.7]
[1765897576011,13.22037981,128.32,128.26,0.7]
[1765897576234,13.22037981,128.31,128.27,0.7]
[1765897576433,13.22037981,128.31,128.25,0.7]
[1765897576633,13.22037981,128.31,128.26,0.7]
[1765897576844,21.01339726,128.32,128.27,0.7]
[1765897577051,13.22037981,128.31,128.27,0.7]
[1765897577557,13.22037981,128.3,128.25,13.92037981]
[1765897577857,8.48301745,128.32,128.26,21.01693891]
[1765897577858,13.22037981,128.31,128.26,21.01693891]
[1765897578044,8.48301745,128.32,128.26,21.01693891]
[1765897578045,21.70339726,128.32,128.27,0.7]
[1765897578442,21.01339726,128.32,128.27,0.7]
[1765897578754,0.1,128.37,128.32,8.49301745]
[1765897578755,7.7906201,128.36,128.32,8.49301745]
[1765897579253,13.22037981,128.4,128.35,0.7]
[1765897579430,54.21603798,128.4,128.35,0.7]
[1765897579636,27.94856697,128.4,128.35,0.7]
[1765897579944,41.16894678,128.4,128.35,0.7]
[1765897580651,13.22037981,128.39,128.35,0.7]
[1765897581024,21.6997551,128.38,128.31,35.48747101]
[1765897581352,41.17319333,128.38,128.32,21.71296924]
[1765897581835,49.69319333,128.38,128.32,21.71296924]
[1765897582038,8.52,128.38,128.35,0.7]
[1765897582753,8.52,128.38,128.31,21.5670912]
[1765897582754,13.22037981,128.36,128.31,21.54058505]
[1765897583052,7.79058896,128.36,128.32,7.79297832]
[1765897583223,7.79058896,128.36,128.32,8.49297832]
[1765897583418,13.22037981,128.35,128.31,7.79361808]
[1765897583619,13.91037981,128.36,128.31,8.49361808]
[1765897583813,7.79003509,128.37,128.33,0.7]
[1765897584044,21.7004149,128.37,128.32,13.92037981]
[1765897584249,13.91037981,128.36,128.31,8.49361808]
[1765897584963,13.22037981,128.35,128.31,8.49360478]
[1765897585168,7.79003509,128.37,128.32,0.7]
[1765897585169,21.01080964,128.37,128.32,0.7]
[1765897585340,62.05051407,128.38,128.33,13.22037981]
[1765897585646,62.05051407,128.38,128.32,13.92037981]
[1765897585948,29.35669603,128.38,128.34,0.7]
[1765897586136,21.69923891,128.39,128.34,0.7]
[1765897586336,21.00882,128.4,128.35,13.22037981]
[1765897586551,21.00882,128.4,128.36,0.7]
[1765897587050,40.47922498,128.4,128.36,0.7]
[1765897587341,13.22037981,128.38,128.32,7.79276198]
[1765897587548,13.22037981,128.37,128.33,0.7]
[1765897587850,13.22037981,128.35,128.31,7.79361707]
[1765897588149,0.69,128.36,128.31,8.49361707]
[1765897588453,8.80994492,128.37,128.31,0.7]
[1765897588661,8.52,128.38,128.34,0.7]
[1765897588946,27.25884517,128.4,128.36,0.7]
[1765897588947,7.78844019,128.4,128.36,0.7]
[1765897589151,16.30780791,128.41,128.37,21.71006185]
[1765897589448,16.30780791,128.41,128.38,0.7]
[1765897589449,8.52,128.41,128.38,0.7]
[1765897590345,0.1,128.45,128.41,0.7]
[1765897590523,7.88523551,128.45,128.4,13.0470912]
[1765897590726,7.88523551,128.45,128.4,0.7]
[1765897590962,41.25844132,128.45,128.4,0.7]
[1765897591424,13.19747885,128.44,128.4,0.7]
[1765897591745,0.1,128.45,128.42,0.7]
[1765897591929,0.1,128.45,128.44,0.7]
[1765897592140,0.1,128.49,128.45,0.7]
[1765897592332,0.1,128.49,128.47,0.7]
[1765897592532,0.1,128.49,128.46,0.7]
[1765897592952,0.1,128.49,128.46,13.89747885]
[1765897593130,7.8829084,128.49,128.46,0.7]
[1765897593339,0.1,128.49,128.46,0.7]
[1765897593537,13.88747885,128.48,128.42,13.19747885]
[1765897593869,22.40747885,128.48,128.43,0.65]
[1765897594164,13.19747885,128.46,128.41,8.50718715]
[1765897594341,13.0470912,128.47,128.42,0.72]
[1765897594342,26.93457005,128.47,128.42,0.72]
[1765897594658,0.1,128.49,128.45,0.72]
[1765897595041,0.1,128.49,128.43,8.50596362]
[1765897595042,13.19747885,128.48,128.43,8.50596362]
[1765897595252,7.78391842,128.47,128.43,8.50596362]
[1765897595458,8.52,128.48,128.45,0.72]
[1765897597473,0.1,128.49,128.48,0.72]
[1765897598856,0.1,128.49,128.46,13.19747885]
[1765897599058,0.1,128.49,128.47,0.72]
[1765897599266,0.1,128.49,128.46,8.50434564]
[1765897599567,0.1,128.49,128.47,13.19747885]
[1765897599755,0.1,128.49,128.48,0.72]
[1765897599961,0.1,128.49,128.47,0.72]
[1765897600676,0.1,128.49,128.45,8.50490201]
[1765897601044,13.29747885,128.49,128.45,0.72]
[1765897601371,21.77060918,128.49,128.44,8.5055346]
[1765897602474,13.19747885,128.48,128.44,0.72]
[1765897602764,40.53737624,128.49,128.44,8.50572337]
[1765897603554,27.33989739,128.49,128.44,8.50572337]
[1765897603770,21.08060918,128.49,128.44,8.50572337]
[1765897603982,7.88313033,128.49,128.45,0.72]
[1765897604268,21.08060918,128.49,128.44,7.78572337]
[1765897604464,21.08060918,128.49,128.45,0.72]
[1765897604975,13.19747885,128.46,128.4,21.85703612]
[1765897605155,13.19747885,128.45,128.42,0.72]
[1765897605357,20.98315507,128.45,128.4,0.72]
[1765897605747,13.19747885,128.44,128.38,8.50911038]
[1765897605948,13.19747885,128.43,128.38,8.50911038]
[1765897606257,13.19747885,128.44,128.39,0.72]
[1765897606477,13.88747885,128.44,128.39,0.72]
[1765897606671,13.19747885,128.43,128.39,0.72]
[1765897607059,13.19747885,128.42,128.37,7.7897336]
[1765897607277,21.71747885,128.42,128.37,7.7897336]
[1765897607577,8.52,128.42,128.39,0.72]
[1765897607886,16.30705179,128.42,128.38,0.72]
[1765897608185,29.50453064,128.42,128.38,0.72]
[1765897608366,8.52,128.42,128.38,13.19747885]
[1765897608569,8.52,128.42,128.39,0.72]
[1765897608749,30.19466307,128.42,128.37,7.7897336]
[1765897608947,30.19466307,128.42,128.38,0.72]
[1765897608948,29.50466307,128.42,128.38,0.72]
[1765897609668,16.30718422,128.42,128.38,8.50911858]
[1765897609868,21.71747885,128.45,128.4,0.72]
[1765897610247,8.52,128.45,128.41,0.72]
[1765897610683,8.52,128.45,128.42,0.72]
[1765897611059,13.19747885,128.48,128.42,13.19747885]
[1765897611366,8.52,128.47,128.43,0.72]
[1765897611567,8.52,128.47,128.44,0.72]
[1765897611869,0.1,128.49,128.45,13.19747885]
[1765897612072,0.1,128.49,128.46,13.19747885]
[1765897612278,0.1,128.53,128.49,0.72]
[1765897612459,0.1,128.53,128.52,13.91747885]
[1765897613050,0.1,128.58,128.53,0.72]
[1765897613356,0.1,128.58,128.56,8.49811593]
[1765897613654,8.52,128.59,128.56,21.69559478]
[1765897613854,7.77566676,128.61,128.57,0.72]
[1765897614073,7.77566676,128.61,128.57,13.19747885]
[1765897614274,16.39501926,128.62,128.57,13.91747885]
[1765897614456,16.39501926,128.62,128.57,0.72]
[1765897614857,8.62,128.62,128.57,13.19747885]
[1765897615069,8.62,128.62,128.59,0.72]
[1765897615755,8.62,128.62,128.59,13.91747885]
[1765897615950,0.1,128.62,128.61,13.91747885]
[1765897616157,0.1,128.62,128.61,0.72]
[1765897616383,0.1,128.62,128.61,13.91747885]
[1765897617180,0.1,128.62,128.61,22.72742377]
[1765897617369,0.1,128.62,128.61,7.77544514]
[1765897617692,0.1,128.62,128.61,13.91747885]
[1765897617979,0.1,128.67,128.62,0.72]
[1765897618154,0.1,128.67,128.64,0.72]
[1765897618474,16.98044088,128.7,128.65,13.91747885]
[1765897618680,30.17791973,128.7,128.65,0.72]
[1765897619058,30.17791973,128.7,128.61,36.02400292]
[1765897619059,0.69,128.69,128.61,36.02400292]
[1765897619259,13.19747885,128.68,128.63,0.72]
[1765897619474,7.77181938,128.67,128.63,0.72]
[1765897620279,8.0910933,128.69,128.63,15.86499337]
[1765897620580,29.33649528,128.71,128.66,8.8110933]
[1765897620788,29.33649528,128.71,128.67,0.72]
[1765897621184,56.85109879,128.71,128.65,8.8110933]
[1765897621381,15.86170484,128.69,128.62,13.0470912]
[1765897621562,20.81694378,128.71,128.67,0.72]
[1765897622184,49.02154729,128.71,128.65,8.8110933]
[1765897622486,49.02154729,128.71,128.66,0.72]
[1765897622669,40.24045399,128.71,128.67,0.72]
[1765897622872,8.52,128.72,128.7,0.72]
[1765897623063,8.52,128.72,128.71,8.8110933]
[1765897623383,0.69,128.74,128.7,16.58076639]
[1765897623686,27.18667554,128.74,128.69,8.7810933]
[1765897623870,27.86667554,128.74,128.69,8.7810933]
[1765897624067,8.44769155,128.74,128.69,8.7810933]
[1765897624268,8.44769155,128.74,128.69,8.0910933]
[1765897624462,8.44769155,128.74,128.69,8.7810933]
[1765897624782,8.7710933,128.72,128.65,13.7370912]
[1765897625111,8.0910933,128.68,128.64,0.1]
[1765897625381,8.7710933,128.66,128.6,8.6]
[1765897625691,8.5,128.67,128.58,8.7810933]
[1765897625692,8.7710933,128.63,128.58,8.7810933]
[1765897625858,8.5,128.63,128.57,19.4434335]
[1765897626060,7.77302759,128.65,128.6,15.86704917]
[1765897626279,16.27252144,128.66,128.62,0.69]
[1765897626488,8.0910933,128.64,128.59,0.69]
[1765897626668,8.7710933,128.63,128.58,0.69]
[1765897627172,8.0910933,128.64,128.59,0.69]
[1765897627369,7.77252144,128.66,128.6,8.0910933]
[1765897627557,8.5,128.66,128.63,8.7810933]
[1765897627754,0.68,128.65,128.6,16.5570865]
[1765897628175,0.68,128.65,128.6,8.4659932]
[1765897628483,8.7710933,128.65,128.6,0.69]
[1765897628686,8.0910933,128.64,128.58,16.55793616]
[1765897628876,8.7710933,128.64,128.59,0.69]
[1765897629265,8.7710933,128.63,128.58,0.69]
[1765897629470,7.77484061,128.62,128.58,8.7810933]
[1765897629681,7.77484061,128.62,128.58,16.55817959]
[1765897629881,7.77484061,128.62,128.59,0.69]
[1765897630109,7.77484061,128.62,128.58,8.46708629]
[1765897630467,7.77441948,128.63,128.59,0.69]
[1765897630882,7.7736802,128.64,128.59,8.7810933]
[1765897631216,8.5,128.64,128.61,0.69]
[1765897631418,17.2710933,128.64,128.58,35.31132782]
[1765897631614,8.45423618,128.63,128.58,16.55817959]
[1765897631907,16.54532948,128.63,128.58,16.55817959]
[1765897632080,7.77423618,128.63,128.58,15.86817959]
[1765897632287,16.27380441,128.64,128.59,8.0910933]
[1765897632484,16.27380441,128.64,128.6,0.69]
[1765897632784,43.79897731,128.64,128.58,8.46708629]
[1765897632994,8.5,128.64,128.59,8.0910933]
[1765897633180,8.5,128.64,128.6,8.7810933]
[1765897633381,8.5,128.64,128.59,0.69]
[1765897633705,8.5,128.64,128.62,0.69]
[1765897633876,8.45315758,128.65,128.6,16.55692935]
[1765897634071,35.97681986,128.65,128.59,15.86718151]
[1765897634299,8.7710933,128.64,128.59,0.69]
[1765897634604,0.68,128.63,128.58,8.0910933]
[1765897634788,17.2710933,128.63,128.58,0.69]
[1765897634978,8.0910933,128.62,128.58,0.69]
[1765897635178,0.68,128.63,128.59,8.46617191]
[1765897635379,8.5,128.64,128.61,0.69]
[1765897635578,8.5,128.64,128.61,8.46518257]
[1765897635781,8.7710933,128.68,128.62,8.7810933]
[1765897636093,19.52719527,128.69,128.61,27.21379543]
[1765897636094,8.5,128.67,128.63,8.0910933]
[1765897636298,8.5,128.67,128.65,8.7810933]
[1765897636484,16.95044493,128.7,128.65,8.7810933]
[1765897636680,0.78,128.72,128.68,0.69]
[1765897636895,17.2710933,128.72,128.66,8.7810933]
[1765897637100,8.5,128.72,128.68,0.69]
[1765897637303,8.5,128.72,128.68,8.7810933]
[1765897637605,16.94882411,128.72,128.66,19.43091269]
[1765897637906,16.94882411,128.72,128.68,16.55219304]
[1765897637907,16.26882411,128.72,128.68,16.55219304]
[1765897638406,8.5,128.72,128.69,8.0910933]
[1765897638605,16.26717014,128.75,128.69,0.69]
[1765897638903,16.26717014,128.75,128.71,0.69]
[1765897639401,8.4465454,128.76,128.71,8.7810933]
[1765897639618,7.76596238,128.77,128.72,8.45880049]
[1765897639909,0.1,128.78,128.76,8.0910933]
[1765897640079,0.1,128.78,128.77,8.0910933]
[1765897640404,0.1,128.78,128.77,16.90103822]
[1765897640706,0.1,128.83,128.78,8.80994492]
[1765897641080,16.63276716,128.84,128.78,8.0910933]
[1765897641278,0.1,128.84,128.79,8.0910933]
[1765897641511,0.1,128.84,128.8,8.0910933]
[1765897641809,8.8710933,128.84,128.77,13.0470912]
[1765897642117,8.0910933,128.83,128.77,15.85641282]
[1765897642288,9.18,128.83,128.78,15.85620699]
[1765897642697,8.5,128.83,128.79,8.0910933]
[1765897642896,9.28,128.84,128.79,8.0910933]
[1765897643198,8.6,128.84,128.8,8.0910933]
[1765897643378,9.28,128.84,128.79,8.0910933]
[1765897643575,17.0420239,128.84,128.79,15.85531399]
[1765897643791,17.0420239,128.84,128.79,16.54531399]
[1765897644001,17.0420239,128.84,128.79,8.7810933]
[1765897644209,17.0420239,128.84,128.75,47.33473867]
[1765897644210,0.68,128.83,128.75,7.76647915]
[1765897644413,0.68,128.83,128.76,0.69]
[1765897644576,0.68,128.81,128.76,8.7810933]
[1765897644980,8.7710933,128.81,128.76,0.69]
[1765897645208,8.7710933,128.81,128.76,8.45626333]
[1765897645399,8.7710933,128.81,128.75,8.0910933]
[1765897645400,8.7710933,128.81,128.74,13.7370912]
[1765897645600,13.1470912,128.84,128.8,8.0910933]
[1765897645801,0.1,128.85,128.83,8.0910933]
[1765897646113,0.1,128.85,128.84,8.0910933]
[1765897646683,0.1,128.9,128.87,13.0470912]
[1765897647013,0.1,128.9,128.89,8.0910933]
[1765897647193,0.68,128.94,128.89,8.0910933]
[1765897647388,0.1,128.95,128.92,8.0910933]
[1765897647583,7.75476178,128.96,128.9,0.21]
[1765897647803,7.75476178,128.96,128.92,8.0910933]
[1765897647804,8.43476178,128.96,128.92,8.0910933]
[1765897648346,8.43476178,128.96,128.91,7.75735008]
[1765897648606,8.43476178,128.96,128.89,19.39578994]
[1765897648607,8.0910933,128.95,128.89,8.0910933]
[1765897648810,0.68,128.91,128.86,8.0910933]
[1765897648980,0.68,128.91,128.88,8.0910933]
[1765897649182,8.0910933,128.94,128.88,8.0910933]
[1765897649408,0.68,128.93,128.88,8.0910933]
[1765897649611,8.0910933,128.92,128.85,13.0470912]
[1765897649811,0.68,128.9,128.85,29.6381845]
[1765897650182,0.68,128.9,128.83,7.76196556]
[1765897650533,0.68,128.89,128.85,8.0910933]
[1765897650681,0.68,128.89,128.86,8.0910933]
[1765897650877,27.1507253,128.91,128.86,8.0910933]
[1765897651117,27.1507253,128.91,128.85,7.76070473]
[1765897651118,0.68,128.9,128.85,7.76070473]
[1765897651320,0.68,128.9,128.86,8.0910933]
[1765897651692,8.43814478,128.9,128.86,8.0910933]
[1765897652020,0.68,128.89,128.84,21.1381845]
[1765897652241,0.68,128.89,128.84,28.89953157]
[1765897652411,0.68,128.89,128.84,21.1381845]
[1765897652605,27.15302453,128.9,128.8,0.1]
[1765897652945,0.68,128.86,128.8,21.2381845]
[1765897653240,0.68,128.86,128.81,8.0910933]
[1765897653407,0.68,128.86,128.81,7.76299511]
[1765897653608,0.68,128.86,128.81,15.85408841]
[1765897653843,8.46096235,128.85,128.81,15.85408841]
[1765897654007,7.76038375,128.86,128.82,8.0910933]
[1765897654200,0.7,128.88,128.83,8.0910933]
[1765897654709,0.7,128.88,128.85,8.0910933]
[1765897655030,0.7,128.88,128.84,8.0910933]
[1765897655426,7.75870436,128.89,128.85,8.0910933]
[1765897655735,0.7,128.88,128.85,8.0910933]
[1765897655903,0.7,128.88,128.84,8.0910933]
[1765897656102,0.7,128.88,128.84,7.76136773]
[1765897656407,0.7,128.88,128.84,8.0910933]
[1765897656609,0.7,128.88,128.83,8.0910933]
[1765897656932,16.25818336,128.9,128.85,8.0910933]
[1765897657235,16.25818336,128.9,128.85,15.85198483]
[1765897657236,0.7,128.89,128.85,15.85198483]
[1765897657441,0.7,128.89,128.84,7.76136519]
[1765897657604,0.7,128.89,128.84,15.85245849]
[1765897657799,0.7,128.88,128.84,15.85245849]
[1765897658430,0.7,128.89,128.84,27.16527701]
[1765897658734,0.7,128.89,128.86,8.0910933]
[1765897659730,0.7,128.89,128.85,8.0910933]
[1765897660328,0.7,128.9,128.86,15.85145338]
[1765897660537,0.7,128.9,128.87,8.0910933]
[1765897660726,7.7562167,128.93,128.87,8.0910933]
[1765897661035,0.7,128.92,128.87,8.0910933]
[1765897661415,0.7,128.92,128.88,8.0910933]
[1765897661603,0.7,128.96,128.9,13.0470912]
[1765897661807,0.1,128.97,128.91,9.01994492]
[1765897662005,0.1,128.97,128.95,8.0910933]
[1765897662205,0.7,128.99,128.95,15.84554436]
[1765897662628,8.45147307,129.01,128.96,8.0910933]
[1765897662948,8.04846594,129.01,128.95,7.75445106]
[1765897663105,0.8,128.98,128.94,15.80353436]
[1765897664137,0.8,128.98,128.93,13.0470912]
[1765897664333,0.7,128.96,128.93,13.0470912]
[1765897664556,8.45374118,128.97,128.93,20.80319769]